lending/lending_fUSD_20250114
["ID","MTS","AMOUNT","RATE_DAILY","PERIOD"]
[348921452,1736873451724,-150.0,0.00010623,2]
[348921454,1736873451734,-1104.0,0.00010623,2]
[348921456,1736873451743,-150.0,0.00010623,2]
[348921458,1736873451753,-154.83661892,0.00010687,2]
[348921460,1736873451762,-1017.88764744,0.00010728,2]
[348921461,1736873451773,-775.0,0.00010785,2]
[348921463,1736873451784,-554.27,0.00010785,2]
[348921465,1736873451794,-1298.27,0.00010785,2]
[348921467,1736873451803,-1067.04,0.00010785,2]
[348921469,1736873451813,-2046.78,0.00010785,2]
[348921471,1736873451823,-1253.37,0.00010785,2]
[348921473,1736873451832,-388.86175788,0.00010785,2]
[348921475,1736873451842,-831.64,0.00010785,2]
[348921477,1736873451852,-2049.18,0.00010785,2]
[348921479,1736873451861,-721.04,0.00010785,2]
[348921481,1736873451872,-500.0,0.00010785,2]
[348921484,1736873451882,-638.19,0.00010785,2]
[348921486,1736873451892,-551.69,0.00010785,2]
[348921488,1736873451902,-526.93,0.00010785,2]
[348921490,1736873451912,-500.0,0.00010785,2]
[348921492,1736873451921,-2294.02,0.00010785,2]
[348921494,1736873451931,-737.34,0.00010785,2]
[348921496,1736873451940,-931.12,0.00010785,2]
[348921498,1736873451950,-500.0,0.00010785,2]
[348921500,1736873451960,-500.0,0.00010785,2]
[348921502,1736873451970,-1061.62,0.00010785,2]
[348921504,1736873451979,-500.0,0.00010785,2]
[348921506,1736873451989,-682.17,0.00010786,2]
[348921508,1736873451999,-500.0,0.00010786,2]
[348921510,1736873452008,-500.0,0.00010786,2]
[348921512,1736873452019,-325.6719286,0.00010786,2]
[348921514,1736873452029,-500.0,0.00010786,2]
[348921516,1736873452039,-500.0,0.00010786,2]
[348921518,1736873452049,-500.0,0.00010786,2]
[348921520,1736873452058,-500.0,0.00010786,2]
[348921521,1736873452068,-500.0,0.00010786,2]
[348921523,1736873452077,-500.0,0.00010786,2]
[348921525,1736873452087,-534.01,0.00010786,2]
[348921527,1736873452097,-500.0,0.00010786,2]
[348921529,1736873452106,-500.0,0.00010786,2]
[348921531,1736873452116,-500.0,0.00010786,2]
[348921533,1736873452126,-500.0,0.00010786,2]
[348921535,1736873452136,-500.0,0.00010786,2]
[348921537,1736873452145,-500.0,0.00010786,2]
[348921539,1736873452155,-500.0,0.00010786,2]
[348921541,1736873452164,-623.488067,0.00010786,2]
[348921543,1736873452174,-545.33607628,0.00010786,2]
[348921546,1736873452190,-500.0,0.00010786,2]
[348921548,1736873452204,-500.0,0.00010786,2]
[348921551,1736873452215,-500.0,0.00010786,2]
[348921553,1736873452225,-500.0,0.00010786,2]
[348921555,1736873452235,-500.0,0.00010786,2]
[348921557,1736873452244,-500.0,0.00010786,2]
[348921559,1736873452254,-500.0,0.00010786,2]
[348921561,1736873452264,-577.79,0.00010786,2]
[348921563,1736873452274,-500.0,0.00010786,2]
[348921565,1736873452284,-500.0,0.00010786,2]
[348921567,1736873452294,-500.0,0.00010786,2]
[348921569,1736873452304,-500.0,0.00010786,2]
[348921571,1736873452315,-532.22,0.00010786,2]
[348921573,1736873452326,-500.0,0.00010786,2]
[348921575,1736873452337,-500.0,0.00010786,2]
[348921577,1736873452347,-500.0,0.00010786,2]
[348921579,1736873452358,-500.0,0.00010786,2]
[348921581,1736873452370,-500.0,0.00010786,2]
[348921583,1736873452380,-500.0,0.00010786,2]
[348921585,1736873452390,-563.76,0.00010786,2]
[348921588,1736873452401,-500.0,0.00010786,2]
[348921589,1736873452411,-548.45,0.00010786,2]
[348921592,1736873452422,-500.0,0.00010786,2]
[348921594,1736873452431,-500.0,0.00010786,2]
[348921596,1736873452441,-516.55,0.00010786,2]
[348921598,1736873452451,-500.0,0.00010786,2]
[348921600,1736873452460,-500.0,0.00010786,2]
[348921602,1736873452471,-500.0,0.00010786,2]
[348921604,1736873452481,-500.0,0.00010786,2]
[348921606,1736873452491,-500.0,0.00010786,2]
[348921608,1736873452501,-500.0,0.00010786,2]
[348921610,1736873452512,-500.0,0.00010786,2]
[348921612,1736873452522,-206.0757917,0.00010786,2]
[348921614,1736873452532,-500.0,0.00010786,2]
[348921616,1736873452542,-380.9129382,0.00010786,2]
[348921618,1736873452552,-544.55,0.00010786,2]
[348921620,1736873452562,-601.16,0.00010786,2]
[348921622,1736873452572,-587.16,0.00010786,2]
[348921624,1736873452582,-500.0,0.00010786,2]
[348921626,1736873452592,-500.0,0.00010786,2]
[348921628,1736873452603,-500.0,0.00010786,2]
[348921630,1736873452612,-500.0,0.00010786,2]
[348921632,1736873452624,-500.0,0.00010786,2]
[348921634,1736873452634,-607.27,0.00010786,2]
[348921636,1736873452644,-500.0,0.00010786,2]
[348921638,1736873452654,-500.0,0.00010786,2]
[348921640,1736873452665,-500.0,0.00010786,2]
[348921642,1736873452675,-597.63,0.00010786,2]
[348921644,1736873452685,-500.0,0.00010786,2]
[348921646,1736873452697,-500.0,0.00010786,2]
[348921648,1736873452708,-500.0,0.00010786,2]
[348921650,1736873452719,-523.21,0.00010786,2]
[348921652,1736873452728,-500.0,0.00010786,2]
[348921654,1736873452739,-284.04709395,0.00010786,2]
[348921656,1736873452748,-570.93664675,0.00010786,2]
[348921658,1736873452759,-500.0,0.00010786,2]
[348921660,1736873452769,-292.67497849,0.00010786,2]
[348921662,1736873452779,-500.0,0.00010786,2]
[348921664,1736873452789,-500.0,0.00010786,2]
[348921666,1736873452800,-487.91359979,0.00010786,2]
[348921668,1736873452809,-500.0,0.00010786,2]
[348921670,1736873452819,-500.0,0.00010786,2]
[348921672,1736873452829,-500.0,0.00010786,2]
[348921674,1736873452839,-500.0,0.00010786,2]
[348921676,1736873452850,-500.0,0.00010786,2]
[348921678,1736873452861,-500.0,0.00010786,2]
[348921680,1736873452872,-180.5,0.00010786,2]
[348921681,1736873452882,-500.0,0.00010786,2]
[348921682,1736873452892,-500.0,0.00010786,2]
[348921683,1736873452903,-500.0,0.00010786,2]
[348921684,1736873452914,-500.0,0.00010786,2]
[348921685,1736873452924,-500.0,0.00010786,2]
[348921686,1736873452935,-1448.05,0.00010786,2]
[348921687,1736873452945,-500.0,0.00010786,2]
[348921688,1736873452956,-516.2,0.00010786,2]
[348921689,1736873452967,-4489.17,0.00010786,2]
[348921690,1736873452978,-500.0,0.00010786,2]
[348921692,1736873452989,-500.0,0.00010786,2]
[348921716,1736873453213,-500.0,0.00010786,2]
[348921718,1736873453224,-500.0,0.00010786,2]
[348921720,1736873453234,-500.0,0.00010786,2]
[348921722,1736873453243,-930.31,0.00010786,2]
[348921724,1736873453253,-520.31,0.00010786,2]
[348921726,1736873453263,-500.0,0.00010786,2]
[348921728,1736873453273,-1622.01,0.00010786,2]
[348921730,1736873453282,-503.83,0.00010786,2]
[348921732,1736873453292,-500.0,0.00010786,2]
[348921734,1736873453302,-500.0,0.00010786,2]
[348921736,1736873453311,-532.34,0.00010786,2]
[348921738,1736873453322,-1251.7,0.00010786,2]
[348921740,1736873453332,-500.0,0.00010786,2]
[348921742,1736873453342,-1286.21,0.00010786,2]
[348921744,1736873453352,-500.0,0.00010786,2]
[348921746,1736873453362,-500.0,0.00010786,2]
[348921748,1736873453372,-500.0,0.00010786,2]
[348921750,1736873453382,-1400.82,0.00010786,2]
[348921752,1736873453391,-686.53,0.00010786,2]
[348921754,1736873453400,-500.0,0.00010786,2]
[348921756,1736873453410,-500.0,0.00010786,2]
[348921758,1736873453419,-882.72,0.00010786,2]
[348921760,1736873453429,-500.0,0.00010786,2]
[348921762,1736873453438,-2270.99,0.00010786,2]
[348921764,1736873453448,-600.97,0.00010786,2]
[348921767,1736873453458,-999.28,0.00010786,2]
[348921769,1736873453467,-500.0,0.00010786,2]
[348921771,1736873453477,-720.98,0.00010786,2]
[348921773,1736873453487,-500.0,0.00010786,2]
[348921775,1736873453497,-500.0,0.00010786,2]
[348921777,1736873453508,-500.0,0.00010786,2]
[348921779,1736873453518,-500.0,0.00010786,2]
[348921781,1736873453527,-500.0,0.00010786,2]
[348921783,1736873453537,-500.0,0.00010786,2]
[348921785,1736873453546,-500.0,0.00010786,2]
[348921787,1736873453556,-500.0,0.00010786,2]
[348921789,1736873453566,-840.54,0.00010786,2]
[348921791,1736873453576,-500.0,0.00010786,2]
[348921793,1736873453586,-500.0,0.00010786,2]
[348921795,1736873453597,-500.0,0.00010786,2]
[348921797,1736873453607,-525.447495,0.00010786,2]
[348921799,1736873453616,-500.0,0.00010786,2]
[348921801,1736873453628,-1127.29,0.00010786,2]
[348921803,1736873453638,-500.0,0.00010786,2]
[348921805,1736873453648,-500.0,0.00010786,2]
[348921807,1736873453658,-500.0,0.00010786,2]
[348921809,1736873453667,-2316.4,0.00010786,2]
[348921811,1736873453676,-489.515402,0.00010786,2]
[348921813,1736873453685,-845.26,0.00010786,2]
[348921815,1736873453697,-500.0,0.00010786,2]
[348921817,1736873453709,-500.0,0.00010786,2]
[348921819,1736873453718,-500.0,0.00010786,2]
[348921821,1736873453728,-625.98,0.00010786,2]
[348921823,1736873453738,-1121.41,0.00010787,2]
[348921825,1736873453748,-759.75,0.00010787,2]
[348921827,1736873453758,-1262.08,0.00010787,2]
[348921829,1736873453767,-896.79,0.00010787,2]
[348921831,1736873453778,-2286.33,0.00010787,2]
[348921833,1736873453788,-1099.72,0.00010787,2]
[348921835,1736873453797,-500.0,0.00010787,2]
[348921837,1736873453807,-2044.8,0.00010787,2]
[348921839,1736873453816,-777.29,0.00010787,2]
[348921841,1736873453825,-797.41,0.00010787,2]
[348921843,1736873453835,-2913.28,0.00010787,2]
[348921845,1736873453845,-603.47,0.00010787,2]
[348921847,1736873453854,-3734.94,0.00010787,2]
[348921849,1736873453865,-1162.12,0.00010787,2]
[348921851,1736873453876,-500.0,0.00010787,2]
[348921853,1736873453885,-1874.38,0.00010787,2]
[348921856,1736873453895,-1069.78,0.00010787,2]
[348921857,1736873453905,-644.96,0.00010787,2]
[348921860,1736873453915,-700.1,0.00010787,2]
[348921862,1736873453924,-1008.63,0.00010787,2]
[348921864,1736873453934,-1068.25,0.00010788,2]
[348921865,1736873453943,-500.0,0.00010788,2]
[348921867,1736873453952,-2874.36,0.00010788,2]
[348921869,1736873453961,-500.0,0.00010788,2]
[348921872,1736873453971,-500.0,0.00010788,2]
[348921873,1736873453981,-717.03,0.00010788,2]
[348921875,1736873453991,-664.23,0.00010788,2]
[348921877,1736873454000,-1000.0,0.00010788,2]
[348921879,1736873454009,-864.55,0.00010788,2]
[348921881,1736873454020,-500.0,0.00010788,2]
[348921883,1736873454030,-1140.82,0.00010788,2]
[348921885,1736873454041,-983.39,0.00010788,2]
[348921887,1736873454051,-574.35,0.00010795,2]
[348921889,1736873454060,-500.0,0.00010796,2]
[348921891,1736873454069,-500.0,0.00010796,2]
[348921893,1736873454078,-2020.98,0.00010796,2]
[348921895,1736873454088,-786.31,0.00010796,2]
[348921897,1736873454098,-685.17,0.00010796,2]
[348921899,1736873454107,-500.0,0.00010796,2]
[348921901,1736873454118,-7433.76,0.00010796,2]
[348921903,1736873454129,-896.11,0.00010796,2]
[348921905,1736873454138,-1140.47,0.00010796,2]
[348921907,1736873454148,-1229.69,0.00010796,2]
[348921909,1736873454158,-832.87,0.00010796,2]
[348921911,1736873454168,-2011.66,0.00010796,2]
[348921913,1736873454177,-1370.26,0.00010796,2]
[348921915,1736873454187,-2128.17,0.00010796,2]
[348921917,1736873454197,-2417.47,0.00010796,2]
[348921919,1736873454207,-1036.22,0.00010796,2]
[348921921,1736873454217,-3099.65,0.00010796,2]
[348921924,1736873454227,-500.0,0.00010796,2]
[348921926,1736873454236,-608.09,0.00010796,2]
[348921928,1736873454246,-757.14,0.00010796,2]
[348921930,1736873454256,-150.0,0.00010959,2]
[348921932,1736873454266,-255.0,0.00010959,2]
[348921934,1736873454275,-500.0,0.00011,2]
[348921936,1736873454285,-550.0,0.00011,2]
[348921938,1736873454295,-666.0,0.00011059,2]
[348921940,1736873454304,-666.0,0.00011059,2]
[348921942,1736873454314,-775.0,0.00011059,2]
[348921944,1736873454324,-554.27,0.00011059,2]
[348921946,1736873454334,-1298.27,0.00011059,2]
[348921948,1736873454343,-1067.04,0.00011059,2]
[348921950,1736873454352,-2046.78,0.00011059,2]
[348921951,1736873454362,-1253.37,0.00011059,2]
[348921953,1736873454372,-831.64,0.00011059,2]
[348921955,1736873454382,-2049.18,0.00011059,2]
[348921957,1736873454391,-721.04,0.00011059,2]
[348921959,1736873454400,-500.0,0.00011059,2]
[348921961,1736873454409,-638.19,0.00011059,2]
[348921963,1736873454421,-551.69,0.00011059,2]
[348921965,1736873454431,-526.93,0.00011059,2]
[348921967,1736873454440,-550.0,0.00011059,2]
[348921970,1736873454450,-2294.02,0.00011059,2]
[348921971,1736873454459,-737.34,0.00011059,2]
[348921973,1736873454469,-931.12,0.00011059,2]
[348921975,1736873454478,-500.0,0.00011059,2]
[348921977,1736873454487,-1061.62,0.00011059,2]
[348921979,1736873454497,-500.0,0.00011059,2]
[348921981,1736873454506,-682.17,0.0001106,2]
[348921983,1736873454515,-500.0,0.0001106,2]
[348921985,1736873454525,-208.91275546,0.0001106,2]
[348921988,1736873454535,-500.0,0.0001106,2]
[348921990,1736873454544,-500.0,0.0001106,2]
[348921991,1736873454554,-500.0,0.0001106,2]
[348921993,1736873454563,-500.0,0.0001106,2]
[348921995,1736873454573,-500.0,0.0001106,2]
[348921997,1736873454582,-500.0,0.0001106,2]
[348921999,1736873454591,-534.01,0.0001106,2]
[348922001,1736873454601,-500.0,0.0001106,2]
[348922003,1736873454611,-500.0,0.0001106,2]
[348922005,1736873454620,-500.0,0.0001106,2]
[348922007,1736873454630,-500.0,0.0001106,2]
[348922009,1736873454639,-627.98073306,0.0001106,2]
[348922011,1736873454648,-500.0,0.0001106,2]
[348922013,1736873454657,-500.0,0.0001106,2]
[348922015,1736873454667,-500.0,0.0001106,2]
[348922017,1736873454676,-500.0,0.0001106,2]
[348922019,1736873454685,-500.0,0.0001106,2]
[348922021,1736873454698,-500.0,0.0001106,2]
[348922023,1736873454708,-500.0,0.0001106,2]
[348922025,1736873454718,-500.0,0.0001106,2]
[348922027,1736873454727,-500.0,0.0001106,2]
[348922028,1736873454736,-577.79,0.0001106,2]
[348922030,1736873454746,-500.0,0.0001106,2]
[348922032,1736873454756,-500.0,0.0001106,2]
[348922034,1736873454765,-286.15344738,0.0001106,2]
[348922036,1736873454775,-532.22,0.0001106,2]
[348922038,1736873454786,-500.0,0.0001106,2]
[348922040,1736873454795,-500.0,0.0001106,2]
[348922042,1736873454805,-500.0,0.0001106,2]
[348922044,1736873454814,-500.0,0.0001106,2]
[348922046,1736873454824,-500.0,0.0001106,2]
[348922048,1736873454834,-548.45,0.0001106,2]
[348922050,1736873454843,-500.0,0.0001106,2]
[348922052,1736873454853,-500.0,0.0001106,2]
[348922054,1736873454863,-500.0,0.0001106,2]
[348922056,1736873454874,-516.55,0.0001106,2]
[348922058,1736873454883,-500.0,0.0001106,2]
[348922060,1736873454892,-500.0,0.0001106,2]
[348922062,1736873454902,-500.0,0.0001106,2]
[348922064,1736873454911,-500.0,0.0001106,2]
[348922066,1736873454921,-544.55,0.0001106,2]
[348922068,1736873454931,-601.16,0.0001106,2]
[348922070,1736873454940,-587.16,0.0001106,2]
[348922072,1736873454950,-500.0,0.0001106,2]
[348922074,1736873454960,-500.0,0.0001106,2]
[348922076,1736873454969,-500.0,0.0001106,2]
[348922078,1736873454979,-303.88290293,0.0001106,2]
[348922080,1736873454988,-607.27,0.0001106,2]
[348922082,1736873454998,-500.0,0.0001106,2]
[348922084,1736873455007,-500.0,0.0001106,2]
[348922086,1736873455017,-500.0,0.0001106,2]
[348922088,1736873455027,-597.63,0.0001106,2]
[348922090,1736873455036,-500.0,0.0001106,2]
[348922092,1736873455046,-500.0,0.0001106,2]
[348922094,1736873455056,-500.0,0.0001106,2]
[348922096,1736873455066,-523.21,0.0001106,2]
[348922098,1736873455076,-500.0,0.0001106,2]
[348922100,1736873455085,-474.63972652,0.0001106,2]
[348922102,1736873455095,-500.0,0.0001106,2]
[348922104,1736873455104,-500.0,0.0001106,2]
[348922106,1736873455113,-500.0,0.0001106,2]
[348922108,1736873455123,-500.0,0.0001106,2]
[348922110,1736873455132,-500.0,0.0001106,2]
[348922112,1736873455142,-500.0,0.0001106,2]
[348922114,1736873455151,-500.0,0.0001106,2]
[348922116,1736873455160,-500.0,0.0001106,2]
[348922117,1736873455170,-500.0,0.0001106,2]
[348922119,1736873455179,-500.0,0.0001106,2]
[348922121,1736873455189,-500.0,0.0001106,2]
[348922124,1736873455198,-500.0,0.0001106,2]
[348922126,1736873455208,-1448.05,0.0001106,2]
[348922127,1736873455218,-500.0,0.0001106,2]
[348922130,1736873455228,-4489.17,0.0001106,2]
[348922131,1736873455238,-500.0,0.0001106,2]
[348922133,1736873455249,-500.0,0.0001106,2]
[348922135,1736873455258,-500.0,0.0001106,2]
[348922137,1736873455267,-500.0,0.0001106,2]
[348922139,1736873455277,-500.0,0.0001106,2]
[348922142,1736873455287,-930.31,0.0001106,2]
[348922144,1736873455297,-520.31,0.0001106,2]
[348922146,1736873455308,-500.0,0.0001106,2]
[348922148,1736873455317,-1622.01,0.0001106,2]
[348922150,1736873455327,-503.83,0.0001106,2]
[348922152,1736873455336,-500.0,0.0001106,2]
[348922154,1736873455346,-500.0,0.0001106,2]
[348922156,1736873455356,-532.34,0.0001106,2]
[348922158,1736873455366,-1251.7,0.0001106,2]
[348922160,1736873455377,-500.0,0.0001106,2]
[348922162,1736873455387,-1286.21,0.0001106,2]
[348922164,1736873455396,-500.0,0.0001106,2]
[348922166,1736873455406,-500.0,0.0001106,2]
[348922168,1736873455416,-500.0,0.0001106,2]
[348922170,1736873455425,-1400.82,0.0001106,2]
[348922172,1736873455435,-686.53,0.0001106,2]
[348922174,1736873455444,-500.0,0.0001106,2]
[348922176,1736873455453,-500.0,0.0001106,2]
[348922178,1736873455462,-882.72,0.0001106,2]
[348922180,1736873455472,-500.0,0.0001106,2]
[348922182,1736873455481,-2270.99,0.0001106,2]
[348922184,1736873455491,-600.97,0.0001106,2]
[348922185,1736873455502,-999.28,0.0001106,2]
[348922186,1736873455567,-225.80361815,0.0001106,2]
[348922187,1736873455577,-720.98,0.0001106,2]
[348922188,1736873455587,-500.0,0.0001106,2]
[348922189,1736873455596,-500.0,0.0001106,2]
[348922190,1736873455606,-500.0,0.0001106,2]
[348922192,1736873455615,-500.0,0.0001106,2]
[348922194,1736873455627,-500.0,0.0001106,2]
[348922196,1736873455636,-500.0,0.0001106,2]
[348922198,1736873455646,-500.0,0.0001106,2]
[348922200,1736873455656,-500.0,0.0001106,2]
[348922202,1736873455665,-840.54,0.0001106,2]
[348922204,1736873455675,-500.0,0.0001106,2]
[348922206,1736873455684,-500.0,0.0001106,2]
[348922208,1736873455694,-500.0,0.0001106,2]
[348922210,1736873455707,-525.447495,0.0001106,2]
[348922212,1736873455716,-500.0,0.0001106,2]
[348922214,1736873455726,-1127.29,0.0001106,2]
[348922216,1736873455735,-500.0,0.0001106,2]
[348922218,1736873455745,-500.0,0.0001106,2]
[348922220,1736873455756,-500.0,0.0001106,2]
[348922222,1736873455765,-489.515402,0.0001106,2]
[348922224,1736873455777,-2316.4,0.0001106,2]
[348922226,1736873455787,-845.26,0.0001106,2]
[348922228,1736873455796,-500.0,0.0001106,2]
[348922230,1736873455805,-500.0,0.0001106,2]
[348922232,1736873455815,-500.0,0.0001106,2]
[348922234,1736873455824,-625.98,0.0001106,2]
[348922236,1736873455834,-1121.41,0.00011061,2]
[348922238,1736873455843,-759.75,0.00011061,2]
[348922240,1736873455852,-1262.08,0.00011061,2]
[348922242,1736873455861,-896.79,0.00011061,2]
[348922244,1736873455870,-2286.33,0.00011061,2]
[348922245,1736873455879,-1099.72,0.00011061,2]
[348922247,1736873455889,-500.0,0.00011061,2]
[348922249,1736873455898,-2044.8,0.00011061,2]
[348922251,1736873455907,-777.29,0.00011061,2]
[348922253,1736873455917,-797.41,0.00011061,2]
[348922256,1736873455926,-2913.28,0.00011061,2]
[348922258,1736873455936,-603.47,0.00011061,2]
[348922259,1736873455945,-3734.94,0.00011061,2]
[348922261,1736873455954,-1162.12,0.00011061,2]
[348922263,1736873455964,-500.0,0.00011061,2]
[348922265,1736873455973,-1874.38,0.00011061,2]
[348922268,1736873455982,-1069.78,0.00011061,2]
[348922269,1736873455992,-644.96,0.00011061,2]
[348922271,1736873456001,-700.1,0.00011061,2]
[348922274,1736873456011,-1068.25,0.00011062,2]
[348922275,1736873456022,-500.0,0.00011062,2]
[348922277,1736873456032,-2874.36,0.00011062,2]
[348922279,1736873456042,-500.0,0.00011062,2]
[348922281,1736873456052,-500.0,0.00011062,2]
[348922283,1736873456062,-717.03,0.00011062,2]
[348922285,1736873456071,-664.23,0.00011062,2]
[348922287,1736873456081,-947.18388814,0.00011062,2]
[348922289,1736873456091,-864.55,0.00011062,2]
[348922291,1736873456100,-630.68696314,0.00011062,2]
[348922293,1736873456110,-1140.82,0.00011062,2]
[348922295,1736873456120,-983.39,0.00011062,2]
[348922298,1736873456130,-574.35,0.00011069,2]
[348922300,1736873456139,-500.0,0.0001107,2]
[348922302,1736873456149,-500.0,0.0001107,2]
[348922303,1736873456159,-786.31,0.0001107,2]
[348922305,1736873456168,-685.17,0.0001107,2]
[348922308,1736873456178,-500.0,0.0001107,2]
[348922310,1736873456188,-7433.76,0.0001107,2]
[348922312,1736873456198,-896.11,0.0001107,2]
[348922314,1736873456207,-1140.47,0.0001107,2]
[348922316,1736873456217,-1229.69,0.0001107,2]
[348922317,1736873456225,-832.87,0.0001107,2]
[348922319,1736873456235,-2011.66,0.0001107,2]
[348922322,1736873456245,-1370.26,0.0001107,2]
[348922323,1736873456254,-2128.17,0.0001107,2]
[348922325,1736873456264,-2417.47,0.0001107,2]
[348922328,1736873456274,-1036.22,0.0001107,2]
[348922330,1736873456284,-3099.65,0.0001107,2]
[348922332,1736873456293,-500.0,0.0001107,2]
[348922334,1736873456303,-608.09,0.0001107,2]
[348922335,1736873456313,-757.14,0.0001107,2]
[348922337,1736873456322,-1017.88764744,0.00011141,2]
[348922339,1736873456332,-1000.0,0.00011216,2]
[348922341,1736873456341,-244.38,0.00011219,2]
[348922343,1736873456350,-1069.16,0.00011259,2]
[348922345,1736873456359,-500.0,0.00011259,2]
[348922347,1736873456368,-679.33,0.00011259,2]
[348922349,1736873456378,-500.0,0.00011259,2]
[348922351,1736873456387,-597.12,0.00011259,2]
[348922353,1736873456397,-926.54,0.00011259,2]
[348922355,1736873456406,-500.0,0.00011259,2]
[348922357,1736873456415,-970.9,0.00011259,2]
[348922358,1736873456425,-717.4,0.00011259,2]
[348922360,1736873456434,-1548.22,0.00011259,2]
[348922362,1736873456443,-9130.03,0.00011259,2]
[348922364,1736873456453,-500.0,0.00011327,2]
[348922367,1736873456463,-999.0,0.00011327,2]
[348922368,1736873456473,-775.0,0.00011333,2]
[348922370,1736873456483,-554.27,0.00011333,2]
[348922372,1736873456494,-1298.27,0.00011333,2]
[348922374,1736873456504,-1067.04,0.00011333,2]
[348922376,1736873456513,-2046.78,0.00011333,2]
[348922379,1736873456523,-1253.37,0.00011333,2]
[348922381,1736873456532,-831.64,0.00011333,2]
[348922382,1736873456541,-2049.18,0.00011333,2]
[348922385,1736873456551,-721.04,0.00011333,2]
[348922386,1736873456560,-584.12,0.00011333,2]
[348922389,1736873456570,-638.19,0.00011333,2]
[348922390,1736873456580,-551.69,0.00011333,2]
[348922392,1736873456589,-526.93,0.00011333,2]
[348922394,1736873456599,-2294.02,0.00011333,2]
[348922396,1736873456608,-737.34,0.00011333,2]
[348922397,1736873456618,-931.12,0.00011333,2]
[348922399,1736873456627,-500.0,0.00011333,2]
[348922401,1736873456636,-1061.62,0.00011333,2]
[348922403,1736873456646,-500.0,0.00011333,2]
[348922405,1736873456656,-682.17,0.00011334,2]
[348922407,1736873456665,-500.0,0.00011334,2]
[348922408,1736873456674,-500.0,0.00011334,2]
[348922409,1736873456684,-500.0,0.00011334,2]
[348922410,1736873456693,-500.0,0.00011334,2]
[348922411,1736873456706,-500.0,0.00011334,2]
[348922412,1736873456716,-178.49693324,0.00011334,2]
[348922413,1736873456726,-534.01,0.00011334,2]
[348922414,1736873456735,-500.0,0.00011334,2]
[348922415,1736873456746,-500.0,0.00011334,2]
[348922416,1736873456755,-500.0,0.00011334,2]
[348922417,1736873456765,-500.0,0.00011334,2]
[348922418,1736873456776,-500.0,0.00011334,2]
[348922419,1736873456787,-500.0,0.00011334,2]
[348922420,1736873456797,-500.0,0.00011334,2]
[348922421,1736873456806,-500.0,0.00011334,2]
[348922422,1736873456816,-500.0,0.00011334,2]
[348922423,1736873456826,-500.0,0.00011334,2]
[348922425,1736873456835,-577.79,0.00011334,2]
[348922427,1736873456844,-500.0,0.00011334,2]
[348922429,1736873456854,-500.0,0.00011334,2]
[348922431,1736873456863,-532.22,0.00011334,2]
[348922433,1736873456873,-500.0,0.00011334,2]
[348922435,1736873456882,-500.0,0.00011334,2]
[348922436,1736873456891,-500.0,0.00011334,2]
[348922437,1736873456901,-500.0,0.00011334,2]